[Event "FIDE Womens World Cup 2021"]
[Site "Sochi"]
[Date "2021.07.16"]
[Round "2.2"]
[White "Pogonina, Natalija"]
[Black "Kulkarni Bhakti"]
[Result "1-0"]
[ECO "A48"]
[WhiteElo "2469"]
[BlackElo "2391"]
[Annotator "ChessBase"]
[PlyCount "115"]
[EventDate "2021.07.12"]
[EventType "k.o."]
[EventCountry "RUS"]
[SourceTitle "playchess.com"]
[Source "ChessBase"]
[SourceQuality "1"]
[TimeControl "40/5400+30:1800+30"]

1. Nf3 {[%emt 0:00:04]} Nf6 {[%emt 0:00:36]} 2. d4 {[%emt 0:00:27]} g6 {[%emt 0:00:55]} 3. b3 {[%emt 0:03:28]} Bg7 {[%emt 0:00:41]} 4. Bb2 {[%emt 0:00:10]} O-O {[%emt 0:01:46]} 5. e3 {[%emt 0:00:48]} d6 {[%emt 0:04:45]} 6. Be2 {[%emt 0:01:07]} Nbd7 {[%emt 0:03:02]} 7. O-O {[%emt 0:01:39]} e5 {[%emt 0:06:49]} 8. dxe5 {[%emt 0:06:29]} Ng4 {[%emt 0:00:35]} 9. c4 {[%emt 0:02:26]} Ngxe5 {[%emt 0:01:29]} 10. Nxe5 {[%emt 0:02:50]} Nxe5 {[%emt 0:02:14]} 11. Nc3 {[%emt 0:01:09]} Nc6 {[%emt 0:12:00]} 12. Qd2 {[%emt 0:04:44]} Be6 {[%emt 0:07:02]} 13. Rad1 {[%emt 0:08:48]} f5 {[%emt 0:05:19]} 14. f4 {[%emt 0:02:20]} Qf6 {[%emt 0:08:32]} 15. Bf3 {[%emt 0:02:13]} Rfe8 {[%emt 0:06:07]} 16. Rb1 {[%emt 0:07:30]} Kh8 {[%emt 0:03:58]} 17. Nd5 {[%emt 0:04:05]} Qf7 {[%emt 0:00:11]} 18. b4 {[%emt 0:01:34]} Rac8 {[%emt 0:12:11]} 19. Rfe1 {[%emt 0:04:39]} Bxb2 {[%emt 0:03:52]} 20. Qxb2+ {[%emt 0:10:02]} Qg7 {[%emt 0:00:06]} 21. Qa3 {[%emt 0:00:31]} Ra8 {[%emt 0:12:32]} 22. b5 {[%emt 0:16:21]} Nd8 {[%emt 0:00:49]} 23. b6 {[%emt 0:03:12]} Bxd5 {[%emt 0:01:39]} 24. Bxd5 {[%emt 0:01:25]} cxb6 {[%emt 0:01:07]} 25. Rxb6 {[%emt 0:02:13]} axb6 {[%emt 0:01:17]} 26. Qxa8 {[%emt 0:00:05]} b5 {[%emt 0:01:00]} 27. Qc8 {[%emt 0:05:14]} b4 {[%emt 0:02:20]} 28. Qb8 {[%emt 0:01:44]} Qc3 {[%emt 0:00:44]} 29. Kf2 {[%emt 0:00:59]} Qf6 {[%emt 0:00:11]} 30. Re2 {[%emt 0:02:21]} Qh4+ {[%emt 0:00:53]} 31. Kg1 {[%emt 0:00:17]} Qe7 {[%emt 0:00:23]} 32. Qa7 {[%emt 0:00:54]} Ne6 {[%emt 0:00:34]} 33. Bxe6 {[%emt 0:02:55]} Qxe6 {[%emt 0:00:03]} 34. Qa4 {[%emt 0:01:19]} Rc8 {[%emt 0:00:23]} 35. Qxb4 {[%emt 0:00:06]} Rxc4 {[%emt 0:01:11]} 36. Qxb7 {[%emt 0:00:43]} Rc1+ {[%emt 0:00:29]} 37. Kf2 {[%emt 0:00:04]} Qf6 {[%emt 0:00:30]} 38. Qb2 {[%emt 0:00:59]} Qxb2 {[%emt 0:00:42]} 39. Rxb2 {[%emt 0:00:05]} Kg7 {[%emt 0:00:26]} 40. Rb7+ {[%emt 0:01:48]} Kf6 {[%emt 0:00:17]} 41. Rxh7 {[%emt 0:12:31]} Rc2+ {[%emt 0:04:47]} 42. Kf3 {[%emt 0:00:09]} Rxa2 {[%emt 0:00:14]} 43. h3 {[%emt 0:00:51]} Ra1 {[%emt 0:12:03]} 44. g4 {[%emt 0:01:15]} d5 {[%emt 0:08:26]} 45. g5+ {[%emt 0:09:30]} Ke6 {[%emt 0:00:02]} 46. Rg7 {[%emt 0:00:21]} Ra3 {[%emt 0:00:15]} 47. Rxg6+ {[%emt 0:00:38]} Ke7 {[%emt 0:00:08]} 48. Ke2 {[%emt 0:01:48]} Ra2+ {[%emt 0:03:56]} 49. Kd3 {[%emt 0:00:07]} Ra3+ {[%emt 0:00:06]} 50. Kd4 {[%emt 0:00:11]} Ra4+ {[%emt 0:00:04]} 51. Kxd5 {[%emt 0:01:37]} Re4 {[%emt 0:00:05]} 52. Rf6 {[%emt 0:01:15]} Rxe3 {[%emt 0:00:05]} 53. Rxf5 {[%emt 0:00:06]} Rxh3 {[%emt 0:00:10]} 54. g6 {[%emt 0:01:05]} Rg3 {[%emt 0:00:10]} 55. Rf7+ {[%emt 0:00:23]} Ke8 {[%emt 0:00:04]} 56. f5 {[%emt 0:00:08]} Re3 {[%emt 0:00:57]} 57. Ra7 {[%emt 0:01:59]} Kf8 {[%emt 0:01:27]} 58. f6 {[%emt 0:00:12]} 1-0

[Event "FIDE Womens World Cup 2021"]
[Site "Sochi"]
[Date "2021.07.16"]
[Round "2.2"]
[White "Mammadzada, Gunay"]
[Black "Unuk, Laura"]
[Result "1-0"]
[ECO "B19"]
[WhiteElo "2460"]
[BlackElo "2407"]
[Annotator "ChessBase"]
[PlyCount "83"]
[EventDate "2021.07.12"]
[EventType "k.o."]
[EventCountry "RUS"]
[SourceTitle "playchess.com"]
[Source "ChessBase"]
[SourceQuality "1"]
[TimeControl "40/5400+30:1800+30"]

1. e4 {[%emt 0:00:04]} c6 {[%emt 0:00:20]} 2. d4 {[%emt 0:00:25]} d5 {[%emt 0:00:30]} 3. Nc3 {[%emt 0:00:14]} dxe4 {[%emt 0:00:19]} 4. Nxe4 {[%emt 0:00:02]} Bf5 {[%emt 0:00:48]} 5. Ng3 {[%emt 0:00:04]} Bg6 {[%emt 0:00:04]} 6. h4 {[%emt 0:00:09]} h6 {[%emt 0:00:05]} 7. Nf3 {[%emt 0:00:08]} Nd7 {[%emt 0:00:24]} 8. Bd3 {[%emt 0:00:49]} Bxd3 {[%emt 0:00:26]} 9. Qxd3 {[%emt 0:00:03]} e6 {[%emt 0:00:10]} 10. Bd2 {[%emt 0:04:43]} Ngf6 {[%emt 0:00:50]} 11. O-O-O {[%emt 0:00:57]} Be7 {[%emt 0:00:35]} 12. Ne4 {[%emt 0:08:43]} O-O {[%emt 0:05:31]} 13. Kb1 {[%emt 0:10:27]} Nxe4 {[%emt 0:04:14]} 14. Qxe4 {[%emt 0:00:04]} Nf6 {[%emt 0:00:14]} 15. Qe2 {[%emt 0:00:36]} Qd5 {[%emt 0:00:34]} 16. Be3 {[%emt 0:02:14]} Qb5 {[%emt 0:12:19]} 17. c4 {[%emt 0:21:39]} Qf5+ {[%emt 0:01:38]} 18. Ka1 {[%emt 0:00:25]} Ng4 {[%emt 0:07:14]} 19. Bc1 {[%emt 0:02:45]} Rad8 {[%emt 0:03:24]} 20. h5 {[%emt 0:05:00]} Rfe8 {[%emt 0:38:52]} 21. Nh4 {[%emt 0:15:46]} Qxh5 {[%emt 0:10:44]} 22. f3 {[%emt 0:03:00]} Nf6 {[%emt 0:00:30]} 23. g4 {[%emt 0:01:31]} Qa5 {[%emt 0:00:07]} 24. g5 {[%emt 0:03:24]} hxg5 {[%emt 0:01:27]} 25. Ng6 {[%emt 0:00:03]} Nh7 {[%emt 0:03:31]} 26. Ne5 {[%emt 0:04:53]} f6 {[%emt 0:04:34]} 27. Nxc6 {[%emt 0:08:35]} Qf5 {[%emt 0:00:48]} 28. Nxd8 {[%emt 0:00:23]} Rxd8 {[%emt 0:00:04]} 29. Be3 {[%emt 0:01:47]} Nf8 {[%emt 0:00:32]} 30. Bf2 {[%emt 0:01:32]} Bd6 {[%emt 0:02:55]} 31. d5 {[%emt 0:01:36]} b6 {[%emt 0:01:24]} 32. dxe6 {[%emt 0:01:24]} Nxe6 {[%emt 0:00:10]} 33. Bg3 {[%emt 0:00:17]} Be7 {[%emt 0:01:07]} 34. Rxd8+ {[%emt 0:01:28]} Bxd8 {[%emt 0:00:03]} 35. Re1 {[%emt 0:00:44]} Kf7 {[%emt 0:00:25]} 36. Qd1 {[%emt 0:00:14]} Qc5 {[%emt 0:00:57]} 37. Qd7+ {[%emt 0:00:53]} Qe7 {[%emt 0:00:05]} 38. Qc6 {[%emt 0:01:06]} f5 {[%emt 0:00:49]} 39. Rd1 {[%emt 0:01:05]} Qe8 {[%emt 0:00:45]} 40. Rd7+ {[%emt 0:00:37]} Kf6 {[%emt 0:00:30]} 41. Be5+ {[%emt 0:30:34]} Kg6 {[%emt 0:03:04]} 42. Rxg7+ {[%emt 0:00:00]} 1-0

[Event "FIDE Womens World Cup 2021"]
[Site "Sochi"]
[Date "2021.07.16"]
[Round "2.2"]
[White "Cramling, Pia"]
[Black "Socko, Monika"]
[Result "1/2-1/2"]
[ECO "E51"]
[WhiteElo "2459"]
[BlackElo "2393"]
[Annotator "ChessBase"]
[PlyCount "54"]
[EventDate "2021.07.12"]
[EventType "k.o."]
[EventCountry "RUS"]
[SourceTitle "playchess.com"]
[Source "ChessBase"]
[SourceQuality "1"]
[TimeControl "40/5400+30:1800+30"]

1. d4 {[%emt 0:00:05]} Nf6 {[%emt 0:00:05]} 2. c4 {[%emt 0:00:08]} e6 {[%emt 0:00:04]} 3. Nc3 {[%emt 0:00:12]} Bb4 {[%emt 0:00:05]} 4. e3 {[%emt 0:00:14]} O-O {[%emt 0:00:58]} 5. Nf3 {[%emt 0:02:33]} d5 {[%emt 0:01:29]} 6. Bd2 {[%emt 0:00:43]} Re8 {[%emt 0:04:29]} 7. Rc1 {[%emt 0:05:56]} b6 {[%emt 0:07:07]} 8. cxd5 {[%emt 0:00:57]} exd5 {[%emt 0:00:56]} 9. Ne5 {[%emt 0:15:24]} Bb7 {[%emt 0:07:05]} 10. Bd3 {[%emt 0:01:24]} Nbd7 {[%emt 0:05:56]} 11. f4 {[%emt 0:05:43]} Bxc3 {[%emt 0:02:43]} 12. Bxc3 {[%emt 0:01:27]} Nxe5 {[%emt 0:16:49]} 13. fxe5 {[%emt 0:01:49]} Ne4 {[%emt 0:00:04]} 14. O-O {[%emt 0:00:39]} Re6 {[%emt 0:05:31]} 15. Rf4 {[%emt 0:10:56]} Qe7 {[%emt 0:06:41]} 16. Qg4 {[%emt 0:05:07]} Rg6 {[%emt 0:03:22]} 17. Qe2 {[%emt 0:00:23]} Rf8 {[%emt 0:01:45]} 18. Rcf1 {[%emt 0:08:19]} c5 {[%emt 0:01:22]} 19. Be1 {[%emt 0:07:23]} Rh6 {[%emt 0:03:45]} 20. Qc2 {[%emt 0:04:22]} Qe6 {[%emt 0:03:28]} 21. Qa4 {[%emt 0:05:09]} a5 {[%emt 0:03:01]} 22. Qd1 {[%emt 0:09:01]} Bc6 {[%emt 0:04:02]} 23. Bc3 {[%emt 0:01:02]} Rg6 {[%emt 0:01:09]} 24. Qe2 {[%emt 0:03:35]} Rh6 {[%emt 0:02:18]} 25. Qd1 {[%emt 0:01:27]} Rg6 {[%emt 0:00:09]} 26. Qe2 {[%emt 0:00:56]} Rh6 {[%emt 0:00:06]} 27. Qd1 {[%emt 0:01:33]} Rg6 1/2-1/2

[Event "FIDE Womens World Cup 2021"]
[Site "Sochi"]
[Date "2021.07.16"]
[Round "2.2"]
[White "Girya, Olga"]
[Black "Garifullina, Leya"]
[Result "0-1"]
[ECO "E39"]
[WhiteElo "2448"]
[BlackElo "2390"]
[Annotator "NA"]
[PlyCount "114"]
[EventDate "2021.07.12"]
[EventType "k.o."]
[EventCountry "RUS"]
[SourceTitle "playchess.com"]
[Source "ChessBase"]
[SourceQuality "1"]
[TimeControl "40/5400+30:1800+30"]

1. d4 {[%emt 0:00:02]} Nf6 {[%emt 0:00:12]} 2. c4 {[%emt 0:00:08]} e6 {[%emt 0:00:06]} 3. Nc3 {[%emt 0:00:07]} Bb4 {[%emt 0:00:06]} 4. Qc2 {[%emt 0:00:10]} c5 {[%emt 0:00:23]} 5. dxc5 {[%emt 0:00:16]} O-O {[%emt 0:00:09]} 6. a3 {[%emt 0:00:23]} Bxc5 {[%emt 0:00:13]} 7. Nf3 {[%emt 0:00:21]} Nc6 {[%emt 0:00:20]} 8. e3 {[%emt 0:05:01]} a5 {[%emt 0:01:26]} 9. Be2 {[%emt 0:01:12]} d5 {[%emt 0:01:27]} 10. O-O {[%emt 0:01:54]} d4 {[%emt 0:04:43]} 11. exd4 {[%emt 0:14:39]} Bxd4 {[%emt 0:06:40]} 12. Nb5 {[%emt 0:06:35]} Bc5 {[%emt 0:05:54]} 13. Bf4 {[%emt 0:05:37]} Qe7 {[%emt 0:05:26]} 14. Bd3 {[%emt 0:06:42]} h6 {[%emt 0:08:05]} 15. Rfe1 {[%emt 0:16:21]} Nh5 {[%emt 0:07:44]} 16. Bd2 {[%emt 0:02:13]} b6 {[%emt 0:03:30]} 17. Bc3 {[%emt 0:10:49]} Bb7 {[%emt 0:02:19]} 18. Rad1 {[%emt 0:01:48]} Rad8 {[%emt 0:06:15]} 19. Qc1 {[%emt 0:01:45]} Rd7 {[%emt 0:11:21]} 20. Be2 {[%emt 0:05:52]} Rxd1 {[%emt 0:01:57]} 21. Rxd1 {[%emt 0:00:21]} e5 {[%emt 0:06:22]} 22. Bf1 {[%emt 0:08:41]} Qf6 {[%emt 0:06:40]} 23. b4 {[%emt 0:05:18]} axb4 {[%emt 0:01:25]} 24. axb4 {[%emt 0:00:01]} Nxb4 {[%emt 0:00:55]} 25. Bxe5 {[%emt 0:01:44]} Qg6 {[%emt 0:02:41]} 26. Qc3 {[%emt 0:01:44]} Re8 {[%emt 0:01:58]} 27. Bd6 {[%emt 0:00:48]} Rd8 {[%emt 0:01:36]} 28. Ne5 {[%emt 0:03:03]} Qg5 {[%emt 0:04:16]} 29. Re1 {[%emt 0:00:34]} Rxd6 {[%emt 0:01:44]} 30. Nxd6 {[%emt 0:00:15]} Bxd6 {[%emt 0:00:04]} 31. Nf3 {[%emt 0:00:37]} Bxf3 {[%emt 0:00:38]} 32. Qxf3 {[%emt 0:00:08]} Nf6 {[%emt 0:00:32]} 33. Rd1 {[%emt 0:01:02]} Bc5 {[%emt 0:00:49]} 34. h3 {[%emt 0:00:28]} Qe5 {[%emt 0:00:47]} 35. Rd8+ {[%emt 0:00:33]} Kh7 {[%emt 0:00:07]} 36. Bd3+ {[%emt 0:00:44]} Nxd3 {[%emt 0:00:07]} 37. Qxd3+ {[%emt 0:00:02]} Qe4 {[%emt 0:00:10]} 38. Qf1 {[%emt 0:00:57]} Qf5 {[%emt 0:00:32]} 39. Rd3 {[%emt 0:00:24]} Bxf2+ {[%emt 0:01:06]} 40. Kh1 {[%emt 0:00:02]} Ne4 {[%emt 0:00:16]} 41. g4 {[%emt 0:03:31]} Qg6 {[%emt 0:03:25]} 42. Kg2 {[%emt 0:02:56]} f5 {[%emt 0:05:25]} 43. Qe2 {[%emt 0:02:18]} h5 {[%emt 0:00:53]} 44. Rd5 {[%emt 0:03:21]} Bh4 {[%emt 0:04:44]} 45. Qf3 {[%emt 0:04:57]} fxg4 {[%emt 0:00:36]} 46. Qf5 {[%emt 0:01:56]} Nf6 {[%emt 0:04:31]} 47. Rb5 {[%emt 0:04:23]} Qxf5 {[%emt 0:01:06]} 48. Rxf5 {[%emt 0:00:02]} Kg6 {[%emt 0:00:10]} 49. hxg4 {[%emt 0:03:22]} Nxg4 {[%emt 0:00:14]} 50. Rf3 {[%emt 0:01:22]} Bf2 {[%emt 0:00:30]} 51. Kh3 {[%emt 0:00:44]} Bc5 {[%emt 0:00:16]} 52. Kh4 {[%emt 0:00:28]} Kh6 {[%emt 0:00:16]} 53. Rf1 {[%emt 0:00:38]} g5+ {[%emt 0:00:06]} 54. Kg3 {[%emt 0:00:13]} Kg6 {[%emt 0:00:07]} 55. Ra1 {[%emt 0:00:32]} Ne3 {[%emt 0:00:12]} 56. Rc1 {[%emt 0:00:25]} Kf5 {[%emt 0:00:07]} 57. Kf3 {[%emt 0:00:12]} h4 {[%emt 0:00:11]} 0-1

[Event "FIDE Womens World Cup 2021"]
[Site "Sochi"]
[Date "2021.07.16"]
[Round "2.2"]
[White "Atalik, Ekaterina"]
[Black "Guichard, Pauline"]
[Result "1/2-1/2"]
[ECO "E20"]
[WhiteElo "2433"]
[BlackElo "2413"]
[Annotator "NA"]
[PlyCount "174"]
[EventDate "2021.07.12"]
[EventType "k.o."]
[EventCountry "RUS"]
[SourceTitle "playchess.com"]
[Source "ChessBase"]
[SourceQuality "1"]
[TimeControl "40/5400+30:1800+30"]

1. d4 {[%emt 0:00:03]} Nf6 {[%emt 0:00:06]} 2. c4 {[%emt 0:00:06]} e6 {[%emt 0:00:10]} 3. Nc3 {[%emt 0:00:14]} Bb4 {[%emt 0:00:13]} 4. f3 {[%emt 0:00:25]} c5 {[%emt 0:01:09]} 5. a3 {[%emt 0:00:28]} Bxc3+ {[%emt 0:10:13]} 6. bxc3 {[%emt 0:00:08]} Nc6 {[%emt 0:04:27]} 7. d5 {[%emt 0:06:25]} Ne5 {[%emt 0:08:00]} 8. e4 {[%emt 0:09:30]} Qa5 {[%emt 0:00:28]} 9. Bd2 {[%emt 0:06:28]} b5 {[%emt 0:22:51]} 10. cxb5 {[%emt 0:05:24]} c4 {[%emt 0:00:36]} 11. dxe6 {[%emt 0:00:53]} dxe6 {[%emt 0:06:40]} 12. a4 {[%emt 0:03:42]} O-O {[%emt 0:01:00]} 13. Nh3 {[%emt 0:04:29]} a6 {[%emt 0:03:01]} 14. bxa6 {[%emt 0:02:23]} Bxa6 {[%emt 0:02:20]} 15. Be2 {[%emt 0:07:38]} Bb5 {[%emt 0:00:16]} 16. O-O {[%emt 0:01:03]} Bxa4 {[%emt 0:00:04]} 17. Qc1 {[%emt 0:04:30]} Rfd8 {[%emt 0:02:32]} 18. Nf2 {[%emt 0:12:54]} Qb5 {[%emt 0:13:01]} 19. Be3 {[%emt 0:04:13]} Bb3 {[%emt 0:01:16]} 20. Ra3 {[%emt 0:04:10]} Nc6 {[%emt 0:06:48]} 21. Qa1 {[%emt 0:05:40]} Qb7 {[%emt 0:02:16]} 22. f4 {[%emt 0:02:02]} Ne7 {[%emt 0:05:29]} 23. Bf3 {[%emt 0:01:17]} Bc2 {[%emt 0:00:30]} 24. Ra7 {[%emt 0:04:23]} Rxa7 {[%emt 0:03:59]} 25. Qxa7 {[%emt 0:00:05]} Qxa7 {[%emt 0:00:03]} 26. Bxa7 {[%emt 0:00:08]} Nc6 {[%emt 0:00:28]} 27. Be3 {[%emt 0:00:18]} e5 {[%emt 0:00:39]} 28. Ra1 {[%emt 0:02:28]} exf4 {[%emt 0:00:48]} 29. Bxf4 {[%emt 0:00:04]} Nd7 {[%emt 0:00:18]} 30. Ng4 {[%emt 0:01:43]} f6 {[%emt 0:00:53]} 31. Ne3 {[%emt 0:03:25]} Bd3 {[%emt 0:00:05]} 32. Ra6 {[%emt 0:05:24]} Nce5 {[%emt 0:02:59]} 33. Ra5 {[%emt 0:00:09]} Ng6 {[%emt 0:01:27]} 34. Bg3 {[%emt 0:00:29]} Nde5 {[%emt 0:00:29]} 35. Nd5 {[%emt 0:00:37]} Rb8 {[%emt 0:00:50]} 36. Ra7 {[%emt 0:01:32]} Nxf3+ {[%emt 0:01:06]} 37. gxf3 {[%emt 0:00:04]} Rb1+ {[%emt 0:00:03]} 38. Kf2 {[%emt 0:00:35]} h5 {[%emt 0:00:16]} 39. Bd6 {[%emt 0:01:07]} Rb2+ {[%emt 0:01:16]} 40. Ke3 {[%emt 0:00:26]} Nh4 {[%emt 0:00:47]} 41. Nf4 {[%emt 0:06:36]} Ng2+ {[%emt 0:09:00]} 42. Nxg2 {[%emt 0:00:55]} Rxg2 {[%emt 0:00:06]} 43. Ra5 {[%emt 0:01:56]} Re2+ {[%emt 0:04:14]} 44. Kd4 {[%emt 0:01:47]} Rf2 {[%emt 0:00:05]} 45. Ra8+ {[%emt 0:02:03]} Kh7 {[%emt 0:02:54]} 46. Ra7 {[%emt 0:00:31]} Kg8 {[%emt 0:01:26]} 47. e5 {[%emt 0:01:30]} fxe5+ {[%emt 0:00:56]} 48. Bxe5 {[%emt 0:00:04]} Rxf3 {[%emt 0:00:14]} 49. Rxg7+ {[%emt 0:00:27]} Kf8 {[%emt 0:00:04]} 50. Rc7 {[%emt 0:03:38]} Rf7 {[%emt 0:01:47]} 51. Rc8+ {[%emt 0:00:06]} Ke7 {[%emt 0:00:05]} 52. Kd5 {[%emt 0:00:35]} Be2 {[%emt 0:05:24]} 53. Rh8 {[%emt 0:03:03]} Kd7 {[%emt 0:00:33]} 54. Rh6 {[%emt 0:00:05]} Ke7 {[%emt 0:00:59]} 55. Bd4 {[%emt 0:02:25]} Rf5+ {[%emt 0:00:57]} 56. Be5 {[%emt 0:00:41]} Rf7 {[%emt 0:00:04]} 57. Kc6 {[%emt 0:02:14]} Bf3+ {[%emt 0:01:53]} 58. Kc7 {[%emt 0:01:27]} Rf5 {[%emt 0:00:45]} 59. Bd6+ {[%emt 0:00:29]} Kf7 {[%emt 0:00:07]} 60. Rh8 {[%emt 0:00:28]} Ke6 {[%emt 0:00:52]} 61. Re8+ {[%emt 0:00:34]} Kd5 {[%emt 0:00:30]} 62. Re7 {[%emt 0:01:18]} h4 {[%emt 0:02:16]} 63. Bb4 {[%emt 0:03:21]} Rh5 {[%emt 0:01:32]} 64. Rd7+ {[%emt 0:01:31]} Ke6 {[%emt 0:00:20]} 65. Rd6+ {[%emt 0:00:15]} Ke5 {[%emt 0:00:19]} 66. Rd7 {[%emt 0:01:21]} Be4 {[%emt 0:02:15]} 67. Bd6+ {[%emt 0:00:25]} Ke6 {[%emt 0:00:43]} 68. Bf8 {[%emt 0:02:00]} Rh7 {[%emt 0:00:24]} 69. Bg7 {[%emt 0:00:15]} Kf5 {[%emt 0:00:27]} 70. Kd8 {[%emt 0:01:49]} Kg6 {[%emt 0:02:48]} 71. Rd4 {[%emt 0:00:47]} Kf5 {[%emt 0:00:47]} 72. Bf8 {[%emt 0:00:30]} Bd3 {[%emt 0:00:23]} 73. Bd6 {[%emt 0:00:32]} Ke6 {[%emt 0:00:36]} 74. Bf4 {[%emt 0:00:37]} Kf5 {[%emt 0:00:18]} 75. Be3 {[%emt 0:00:56]} Ke6 {[%emt 0:00:22]} 76. h3 {[%emt 0:00:41]} Kf5 {[%emt 0:01:07]} 77. Ke8 {[%emt 0:01:17]} Kf6 {[%emt 0:00:37]} 78. Rf4+ {[%emt 0:00:34]} Bf5 {[%emt 0:00:27]} 79. Bd4+ {[%emt 0:00:30]} Kg5 {[%emt 0:00:08]} 80. Rf3 {[%emt 0:00:41]} Bg6+ {[%emt 0:00:29]} 81. Kf8 {[%emt 0:00:37]} Bf5 {[%emt 0:00:08]} 82. Bg7 {[%emt 0:01:03]} Kg6 {[%emt 0:00:45]} 83. Rf1 {[%emt 0:01:18]} Bxh3 {[%emt 0:00:24]} 84. Rg1+ {[%emt 0:00:30]} Kf5 {[%emt 0:00:13]} 85. Kg8 {[%emt 0:00:36]} Rh5 {[%emt 0:00:14]} 86. Kf7 {[%emt 0:00:22]} Rg5 {[%emt 0:01:05]} 87. Rh1 {[%emt 0:00:16]} Ke4 1/2-1/2

[Event "FIDE Womens World Cup 2021"]
[Site "Sochi"]
[Date "2021.07.16"]
[Round "2.2"]
[White "Munguntuul, Batkhuyag"]
[Black "Osmak, Iulija"]
[Result "1-0"]
[ECO "B85"]
[WhiteElo "2428"]
[BlackElo "2418"]
[Annotator "NA"]
[PlyCount "181"]
[EventDate "2021.07.12"]
[EventType "k.o."]
[EventCountry "RUS"]
[SourceTitle "playchess.com"]
[Source "ChessBase"]
[SourceQuality "1"]
[TimeControl "40/5400+30:1800+30"]

1. e4 {[%emt 0:00:00]} c5 {[%emt 0:00:04]} 2. Nf3 {[%emt 0:00:06]} d6 {[%emt 0:00:05]} 3. d4 {[%emt 0:00:06]} cxd4 {[%emt 0:00:03]} 4. Nxd4 {[%emt 0:00:06]} Nf6 {[%emt 0:00:05]} 5. Nc3 {[%emt 0:00:03]} a6 {[%emt 0:00:06]} 6. Be2 {[%emt 0:01:11]} e6 {[%emt 0:00:05]} 7. O-O {[%emt 0:02:44]} Nbd7 {[%emt 0:00:52]} 8. a4 {[%emt 0:07:20]} b6 {[%emt 0:00:31]} 9. f4 {[%emt 0:00:55]} Bb7 {[%emt 0:00:58]} 10. Bf3 {[%emt 0:00:17]} Qc7 {[%emt 0:07:02]} 11. Kh1 {[%emt 0:07:54]} Rc8 {[%emt 0:09:20]} 12. Qe2 {[%emt 0:14:52]} Qc4 {[%emt 0:07:52]} 13. Qxc4 {[%emt 0:14:58]} Rxc4 {[%emt 0:00:15]} 14. Be3 {[%emt 0:00:07]} e5 {[%emt 0:07:53]} 15. Nb3 {[%emt 0:02:03]} Be7 {[%emt 0:02:49]} 16. Nd2 {[%emt 0:03:31]} Rc8 {[%emt 0:01:50]} 17. Rac1 {[%emt 0:01:38]} exf4 {[%emt 0:07:51]} 18. Bxf4 {[%emt 0:00:05]} Ne5 {[%emt 0:00:12]} 19. Be2 {[%emt 0:02:34]} O-O {[%emt 0:06:07]} 20. Rfe1 {[%emt 0:07:01]} Rfe8 {[%emt 0:02:18]} 21. h3 {[%emt 0:06:37]} h6 {[%emt 0:04:37]} 22. Be3 {[%emt 0:04:30]} Nfd7 {[%emt 0:03:36]} 23. Kh2 {[%emt 0:05:34]} Bg5 24. Bxg5 {[%emt 0:06:43]} hxg5 {[%emt 0:06:06]} 25. Nf3 {[%emt 0:01:04]} f6 26. Rcd1 {[%emt 0:00:04]} Nf7 {[%emt 0:09:53]} 27. Nd4 {[%emt 0:01:09]} Nc5 {[%emt 0:03:11]} 28. Bg4 {[%emt 0:00:26]} Rcd8 {[%emt 0:10:21]} 29. Bf5 {[%emt 0:01:13]} a5 30. Ndb5 Re7 {[%emt 0:03:19]} 31. b3 {[%emt 0:01:20]} Kf8 {[%emt 0:00:52]} 32. Rd4 {[%emt 0:04:17]} Ne6 {[%emt 0:02:17]} 33. Bxe6 {[%emt 0:02:56]} Rxe6 {[%emt 0:00:01]} 34. Nc7 {[%emt 0:00:19]} Re5 {[%emt 0:01:21]} 35. N3d5 {[%emt 0:00:01]} Rc8 {[%emt 0:01:03]} 36. c4 {[%emt 0:00:02]} Bxd5 {[%emt 0:02:23]} 37. Nxd5 {[%emt 0:00:03]} Rb8 {[%emt 0:00:25]} 38. Red1 {[%emt 0:00:44]} Rb7 {[%emt 0:00:21]} 39. Rb1 {[%emt 0:02:42]} Nd8 {[%emt 0:00:55]} 40. Nc3 {[%emt 0:00:37]} Ke7 {[%emt 0:01:06]} 41. Rbd1 {[%emt 0:32:19]} Re6 {[%emt 0:31:53]} 42. Rd5 {[%emt 0:00:00]} Kd7 {[%emt 0:00:00]} 43. Kg1 {[%emt 0:00:00]} Rb8 {[%emt 0:00:00]} 44. e5 {[%emt 0:00:00]} fxe5 {[%emt 0:00:00]} 45. Ne4 {[%emt 0:00:00]} Nb7 {[%emt 0:00:00]} 46. Nxg5 {[%emt 0:00:00]} Re7 {[%emt 0:00:00]} 47. Ne4 {[%emt 0:00:00]} Re6 {[%emt 0:00:00]} 48. Ng5 {[%emt 0:00:00]} Rg6 {[%emt 0:00:00]} 49. Rxe5 {[%emt 0:00:00]} Rh8 {[%emt 0:00:00]} 50. Kh2 {[%emt 0:00:00]} Nc5 {[%emt 0:00:00]} 51. Red5 {[%emt 0:00:00]} Rf8 {[%emt 0:00:00]} 52. Nf3 {[%emt 0:00:00]} Kc7 {[%emt 0:00:00]} 53. Rb1 {[%emt 0:00:00]} Re8 {[%emt 0:00:00]} 54. Rb2 {[%emt 0:00:00]} Re3 {[%emt 0:00:00]} 55. Nd4 {[%emt 0:00:00]} Kd7 {[%emt 0:00:02]} 56. Nf3 {[%emt 0:00:59]} Kc8 {[%emt 0:01:39]} 57. Nd4 {[%emt 0:00:42]} Kd7 {[%emt 0:02:30]} 58. Nf3 {[%emt 0:00:05]} Rf6 {[%emt 0:00:28]} 59. Rg5 {[%emt 0:01:08]} Rf7 {[%emt 0:01:18]} 60. Rd5 {[%emt 0:00:23]} Rf6 {[%emt 0:01:19]} 61. Rg5 {[%emt 0:01:39]} g6 {[%emt 0:00:04]} 62. h4 {[%emt 0:00:46]} Nxb3 {[%emt 0:01:45]} 63. Rb5 {[%emt 0:01:05]} Nc5 {[%emt 0:00:09]} 64. Rxb6 {[%emt 0:00:01]} Nxa4 {[%emt 0:00:10]} 65. Rb7+ {[%emt 0:00:04]} Ke6 {[%emt 0:02:15]} 66. R2b5 {[%emt 0:01:20]} Nc5 {[%emt 0:00:28]} 67. Ng5+ {[%emt 0:00:25]} Kf5 {[%emt 0:00:23]} 68. Rxa5 {[%emt 0:00:32]} Rc3 {[%emt 0:00:50]} 69. Rb4 {[%emt 0:03:04]} Kg4 {[%emt 0:00:14]} 70. Nf3 {[%emt 0:00:20]} Rc2 {[%emt 0:00:29]} 71. Ra3 {[%emt 0:00:03]} Rf4 {[%emt 0:00:23]} 72. Rb8 {[%emt 0:01:58]} Ne4 {[%emt 0:00:39]} 73. Rg8 {[%emt 0:00:23]} Rf6 {[%emt 0:00:09]} 74. Ng5 {[%emt 0:00:40]} Nd2 {[%emt 0:01:37]} 75. Rg3+ {[%emt 0:00:32]} Kf4 {[%emt 0:00:04]} 76. Nh3+ {[%emt 0:01:08]} Ke5 {[%emt 0:00:36]} 77. R3xg6 {[%emt 0:00:17]} Rf7 {[%emt 0:00:57]} 78. Re8+ {[%emt 0:00:19]} Kf5 {[%emt 0:00:17]} 79. Rxd6 {[%emt 0:00:27]} Rg7 {[%emt 0:00:19]} 80. Rd5+ {[%emt 0:00:15]} Kf6 {[%emt 0:00:13]} 81. Rf8+ {[%emt 0:00:47]} Ke7 {[%emt 0:00:51]} 82. Rf2 {[%emt 0:00:09]} Nf1+ {[%emt 0:00:19]} 83. Kg1 {[%emt 0:00:07]} Ne3 {[%emt 0:00:57]} 84. Re5+ {[%emt 0:00:09]} Kd6 {[%emt 0:00:12]} 85. Rxe3 {[%emt 0:00:05]} Rxc4 {[%emt 0:00:14]} 86. h5 {[%emt 0:00:06]} Rh4 {[%emt 0:00:07]} 87. Rf6+ {[%emt 0:00:16]} Kd5 {[%emt 0:00:09]} 88. h6 {[%emt 0:00:13]} Rh7 {[%emt 0:00:22]} 89. Ng5 {[%emt 0:00:21]} R7xh6 {[%emt 0:00:11]} 90. Rxh6 {[%emt 0:00:01]} Rxh6 {[%emt 0:00:05]} 91. Kf2 {[%emt 0:00:06]} 1-0